[Event "*** Titled Tuesday Blitz"]
[Site "Chess.com"]
[Date "2020.10.20"]
[Round "5"]
[White "eljanov"]
[Black "Fy_Rakotomaharo"]
[Result "1/2-1/2"]
[WhiteElo "2881"]
[BlackElo "2647"]
[TimeControl "180+1"]
[EndTime "10:54:09 PDT"]
[Termination "Game drawn by repetition"]

1. e4 {[%clk 0:03:00.9]} 1... c5 {[%clk 0:02:59.7]} 2. Nf3 {[%clk 0:03:00.8]}
2... e6 {[%clk 0:03:00.1]} 3. d4 {[%clk 0:02:58.9]} 3... cxd4 {[%clk 0:03:01]}
4. Nxd4 {[%clk 0:02:59.4]} 4... Nf6 {[%clk 0:03:01.5]} 5. Nc3 {[%clk 0:02:59.3]}
5... Nc6 {[%clk 0:03:01.9]} 6. g3 {[%clk 0:02:55.5]} 6... d6 {[%clk 0:02:51.9]}
7. Bg2 {[%clk 0:02:55.4]} 7... Be7 {[%clk 0:02:51.8]} 8. O-O {[%clk 0:02:54.7]}
8... O-O {[%clk 0:02:50.9]} 9. Be3 {[%clk 0:02:48.6]} 9... Bd7 {[%clk 0:02:32]}
10. Ndb5 {[%clk 0:02:41.5]} 10... Qb8 {[%clk 0:02:31.9]} 11. h3 {[%clk
0:02:37.8]} 11... a6 {[%clk 0:02:14.8]} 12. Nd4 {[%clk 0:02:37.8]} 12... Qc7
{[%clk 0:02:13.8]} 13. g4 {[%clk 0:02:27.4]} 13... h6 {[%clk 0:02:10.6]} 14. Qe2
{[%clk 0:02:19.9]} 14... b5 {[%clk 0:01:58.3]} 15. a3 {[%clk 0:02:19]} 15...
Rac8 {[%clk 0:01:52]} 16. Rad1 {[%clk 0:02:18.4]} 16... Na5 {[%clk 0:01:44.5]}
17. Rd3 {[%clk 0:02:12.4]} 17... Nc4 {[%clk 0:01:22.4]} 18. Bc1 {[%clk
0:02:12.6]} 18... Qb6 {[%clk 0:01:22.9]} 19. Kh1 {[%clk 0:01:59]} 19... a5
{[%clk 0:01:20.2]} 20. Nd1 {[%clk 0:01:51.5]} 20... Ne5 {[%clk 0:01:14.3]} 21.
Rd2 {[%clk 0:01:51.2]} 21... Nc4 {[%clk 0:01:14.7]} 22. Rd3 {[%clk 0:01:51]}
22... Ne5 {[%clk 0:01:13.4]} 23. Rd2 {[%clk 0:01:49.2]} 23... Nc4 {[%clk
0:01:02.2]} 24. Rd3 {[%clk 0:01:49.4]} 1/2-1/2

[Event "*** Titled Tuesday Blitz"]
[Site "Chess.com"]
[Date "2020.10.20"]
[Round "5"]
[White "Hikaru"]
[Black "Zkid"]
[Result "1-0"]
[WhiteElo "3221"]
[BlackElo "2822"]
[TimeControl "180+1"]
[EndTime "10:54:10 PDT"]
[Termination "Hikaru won by resignation"]

1. e4 {[%clk 0:03:00.9]} 1... c5 {[%clk 0:02:56.6]} 2. Nf3 {[%clk 0:02:58.5]}
2... Nc6 {[%clk 0:02:56.8]} 3. c3 {[%clk 0:02:46.7]} 3... Nf6 {[%clk 0:02:55.8]}
4. e5 {[%clk 0:02:46.2]} 4... Nd5 {[%clk 0:02:56.1]} 5. d4 {[%clk 0:02:42.7]}
5... cxd4 {[%clk 0:02:56.1]} 6. Bc4 {[%clk 0:02:42.5]} 6... Nb6 {[%clk 0:02:56]}
7. Bb3 {[%clk 0:02:42.4]} 7... d5 {[%clk 0:02:47.1]} 8. exd6 {[%clk 0:02:43.3]}
8... Qxd6 {[%clk 0:02:44.8]} 9. Na3 {[%clk 0:02:43.2]} 9... dxc3 {[%clk
0:02:32.5]} 10. Qe2 {[%clk 0:02:43.1]} 10... Be6 {[%clk 0:02:05.7]} 11. Nb5
{[%clk 0:02:35.2]} 11... Qd7 {[%clk 0:02:05.5]} 12. Bxe6 {[%clk 0:02:33.1]}
12... fxe6 {[%clk 0:02:05.3]} 13. O-O {[%clk 0:02:32.1]} 13... cxb2 {[%clk
0:01:53.5]} 14. Bxb2 {[%clk 0:02:30.9]} 14... Nd5 {[%clk 0:01:51.7]} 15. Rad1
{[%clk 0:02:27.2]} 15... a6 {[%clk 0:01:42.7]} 16. Nbd4 {[%clk 0:02:26.4]} 16...
Nxd4 {[%clk 0:01:38.9]} 17. Nxd4 {[%clk 0:02:24.8]} 17... e5 {[%clk 0:01:32.1]}
18. Qh5+ {[%clk 0:02:13.6]} 18... g6 {[%clk 0:01:26.3]} 19. Qxe5 {[%clk
0:02:14.5]} 19... O-O-O {[%clk 0:00:36.1]} 20. Rc1+ {[%clk 0:02:09.2]} 20... Nc7
{[%clk 0:00:32.4]} 21. Ne6 {[%clk 0:02:03.9]} 1-0

[Event "*** Titled Tuesday Blitz"]
[Site "Chess.com"]
[Date "2020.10.20"]
[Round "5"]
[White "TudorAnton"]
[Black "Keures"]
[Result "1-0"]
[WhiteElo "2482"]
[BlackElo "2300"]
[TimeControl "180+1"]
[EndTime "10:54:21 PDT"]
[Termination "TudorAnton won by resignation"]

1. Nf3 {[%clk 0:03:00.9]} 1... Nf6 {[%clk 0:02:59.4]} 2. c4 {[%clk 0:02:57.4]}
2... Nc6 {[%clk 0:02:58.6]} 3. d4 {[%clk 0:02:56.2]} 3... e6 {[%clk 0:02:58.5]}
4. d5 {[%clk 0:02:55.8]} 4... exd5 {[%clk 0:02:58.4]} 5. cxd5 {[%clk 0:02:56.7]}
5... Nb8 {[%clk 0:02:58.6]} 6. Nc3 {[%clk 0:02:56.3]} 6... Bb4 {[%clk
0:02:52.2]} 7. Bg5 {[%clk 0:02:55.8]} 7... O-O {[%clk 0:02:51.7]} 8. Qd4 {[%clk
0:02:53.6]} 8... Be7 {[%clk 0:02:47.7]} 9. e4 {[%clk 0:02:51.3]} 9... d6 {[%clk
0:02:31.3]} 10. Be2 {[%clk 0:02:49.5]} 10... Nfd7 {[%clk 0:02:31]} 11. Bxe7
{[%clk 0:02:47.3]} 11... Qxe7 {[%clk 0:02:31.9]} 12. O-O {[%clk 0:02:47.6]}
12... Ne5 {[%clk 0:02:25.7]} 13. Nxe5 {[%clk 0:02:47.3]} 13... Qxe5 {[%clk
0:02:25]} 14. Qxe5 {[%clk 0:02:47.4]} 14... dxe5 {[%clk 0:02:25.9]} 15. Nb5
{[%clk 0:02:47.1]} 15... Na6 {[%clk 0:02:25.1]} 16. Rac1 {[%clk 0:02:47.4]}
16... c6 {[%clk 0:02:07.8]} 17. dxc6 {[%clk 0:02:48.3]} 17... bxc6 {[%clk
0:02:07.9]} 18. Nd6 {[%clk 0:02:48.4]} 18... Nb4 {[%clk 0:02:04.8]} 19. a3
{[%clk 0:02:47.1]} 19... Nd5 {[%clk 0:01:56.6]} 20. exd5 {[%clk 0:02:44]} 20...
cxd5 {[%clk 0:01:57.5]} 21. Nxc8 {[%clk 0:02:32.3]} 21... Raxc8 {[%clk
0:01:56.9]} 22. Rxc8 {[%clk 0:02:31.5]} 22... Rxc8 {[%clk 0:01:57.8]} 23. Rd1
{[%clk 0:02:31.8]} 23... d4 {[%clk 0:01:57.3]} 24. Bd3 {[%clk 0:02:30.3]} 24...
g6 {[%clk 0:01:55.5]} 25. g4 {[%clk 0:02:22.8]} 25... a5 {[%clk 0:01:55.2]} 26.
g5 {[%clk 0:02:22.1]} 26... Kg7 {[%clk 0:01:54.6]} 27. Kg2 {[%clk 0:02:13.8]}
27... h6 {[%clk 0:01:54.7]} 28. h4 {[%clk 0:02:13.6]} 28... hxg5 {[%clk
0:01:52.6]} 29. hxg5 {[%clk 0:02:14.5]} 29... Rb8 {[%clk 0:01:48.7]} 30. Rd2
{[%clk 0:02:13.9]} 30... Rb3 {[%clk 0:01:48.4]} 31. Kf3 {[%clk 0:02:13.3]} 31...
f5 {[%clk 0:01:45.9]} 32. gxf6+ {[%clk 0:02:14.2]} 32... Kxf6 {[%clk 0:01:46.6]}
33. Ke4 {[%clk 0:02:14.6]} 33... Rb6 {[%clk 0:01:43.3]} 34. Rc2 {[%clk
0:02:13.6]} 34... Re6 {[%clk 0:01:39.7]} 35. Rc8 {[%clk 0:02:09]} 35... Rb6
{[%clk 0:01:38.4]} 36. Rc2 {[%clk 0:02:02.9]} 36... Re6 {[%clk 0:01:38.3]} 37.
b4 {[%clk 0:02:01.6]} 37... axb4 {[%clk 0:01:38.2]} 38. axb4 {[%clk 0:02:02.5]}
38... Ke7 {[%clk 0:01:22.8]} 39. b5 {[%clk 0:02:03.4]} 39... Rf6 {[%clk
0:01:22.3]} 40. Rc7+ {[%clk 0:01:59.3]} 40... Kd6 {[%clk 0:01:21.8]} 41. Rc6+
{[%clk 0:01:59.4]} 41... Ke7 {[%clk 0:01:22.4]} 42. Rxf6 {[%clk 0:02:00]} 42...
Kxf6 {[%clk 0:01:23.3]} 43. b6 {[%clk 0:02:00.5]} 1-0

[Event "*** Titled Tuesday Blitz"]
[Site "Chess.com"]
[Date "2020.10.20"]
[Round "5"]
[White "gagtemp"]
[Black "BJthechessgod"]
[Result "0-1"]
[WhiteElo "1948"]
[BlackElo "2203"]
[TimeControl "180+1"]
[EndTime "10:54:27 PDT"]
[Termination "BJthechessgod won by resignation"]

1. e4 {[%clk 0:03:00.9]} 1... c5 {[%clk 0:02:59.8]} 2. Nf3 {[%clk 0:03:00.8]}
2... e6 {[%clk 0:02:57.2]} 3. d4 {[%clk 0:03:00.6]} 3... cxd4 {[%clk 0:02:57.7]}
4. Nxd4 {[%clk 0:03:01.5]} 4... Nc6 {[%clk 0:02:56.1]} 5. Nc3 {[%clk 0:03:01.8]}
5... Qc7 {[%clk 0:02:56.3]} 6. Be3 {[%clk 0:03:01.6]} 6... a6 {[%clk 0:02:56.3]}
7. Bd3 {[%clk 0:03:01.4]} 7... Nf6 {[%clk 0:02:51.4]} 8. O-O {[%clk 0:03:00.9]}
8... Be7 {[%clk 0:02:47]} 9. Kh1 {[%clk 0:03:00]} 9... O-O {[%clk 0:02:46.8]}
10. f4 {[%clk 0:02:59.6]} 10... b5 {[%clk 0:02:46.7]} 11. a3 {[%clk 0:02:58.9]}
11... Bb7 {[%clk 0:02:46.5]} 12. Qf3 {[%clk 0:02:58.3]} 12... Qd8 {[%clk
0:02:44.7]} 13. Qh3 {[%clk 0:02:54.5]} 13... h6 {[%clk 0:02:43.6]} 14. Nf3
{[%clk 0:02:43]} 14... d5 {[%clk 0:02:40.7]} 15. e5 {[%clk 0:02:18.6]} 15... Nd7
{[%clk 0:02:36.8]} 16. f5 {[%clk 0:02:10]} 16... Ndxe5 {[%clk 0:02:32.4]} 17.
fxe6 {[%clk 0:02:05.5]} 17... Nxd3 {[%clk 0:02:23.1]} 18. exf7+ {[%clk
0:01:43.8]} 18... Rxf7 {[%clk 0:02:24]} 19. cxd3 {[%clk 0:01:40.9]} 19... d4
{[%clk 0:02:23.2]} 20. Bxh6 {[%clk 0:01:39]} 20... dxc3 {[%clk 0:02:12.9]} 21.
Qe6 {[%clk 0:01:29.4]} 21... Qc8 {[%clk 0:02:03.1]} 22. Qg6 {[%clk 0:01:24.7]}
22... Qf5 {[%clk 0:02:00.3]} 23. Qg3 {[%clk 0:01:21.5]} 23... Kh8 {[%clk
0:01:53.4]} 24. Be3 {[%clk 0:01:15.8]} 24... cxb2 {[%clk 0:01:50.8]} 25. Rae1
{[%clk 0:01:12.3]} 25... Qxd3 {[%clk 0:01:49.3]} 26. Rd1 {[%clk 0:00:49.3]} 0-1

[Event "*** Titled Tuesday Blitz"]
[Site "Chess.com"]
[Date "2020.10.20"]
[Round "5"]
[White "anpospan"]
[Black "Mikhail_Golubev"]
[Result "0-1"]
[WhiteElo "2368"]
[BlackElo "2530"]
[TimeControl "180+1"]
[EndTime "10:54:29 PDT"]
[Termination "Mikhail_Golubev won by resignation"]

1. Nf3 {[%clk 0:03:00.9]} 1... d6 {[%clk 0:02:55.5]} 2. g3 {[%clk 0:03:01.2]}
2... g6 {[%clk 0:02:53.8]} 3. Bg2 {[%clk 0:03:01.6]} 3... Bg7 {[%clk 0:02:54.4]}
4. O-O {[%clk 0:03:02.1]} 4... e5 {[%clk 0:02:53.1]} 5. c4 {[%clk 0:03:00]} 5...
Nc6 {[%clk 0:02:52]} 6. Nc3 {[%clk 0:03:00.1]} 6... f5 {[%clk 0:02:50.7]} 7. d3
{[%clk 0:02:58.3]} 7... h6 {[%clk 0:02:50.6]} 8. Rb1 {[%clk 0:02:57.3]} 8... a5
{[%clk 0:02:49.9]} 9. a3 {[%clk 0:02:57.4]} 9... g5 {[%clk 0:02:49.3]} 10. Bd2
{[%clk 0:02:49.6]} 10... Nf6 {[%clk 0:02:47]} 11. b4 {[%clk 0:02:48.7]} 11...
axb4 {[%clk 0:02:47.2]} 12. axb4 {[%clk 0:02:48.7]} 12... O-O {[%clk 0:02:47.6]}
13. b5 {[%clk 0:02:48.5]} 13... Ne7 {[%clk 0:02:48.1]} 14. b6 {[%clk 0:02:42.1]}
14... c6 {[%clk 0:02:47]} 15. d4 {[%clk 0:02:33.7]} 15... e4 {[%clk 0:02:32.2]}
16. Ne1 {[%clk 0:02:33.6]} 16... Be6 {[%clk 0:02:31.9]} 17. c5 {[%clk
0:02:13.5]} 17... dxc5 {[%clk 0:02:13.3]} 18. dxc5 {[%clk 0:02:13.5]} 18... Qd4
{[%clk 0:02:11.9]} 19. Be3 {[%clk 0:02:00.2]} 19... Qxc3 {[%clk 0:02:08.6]} 20.
Qd6 {[%clk 0:02:00.1]} 20... Kf7 {[%clk 0:02:02.4]} 21. Bd4 {[%clk 0:01:41.8]}
21... Qc4 {[%clk 0:01:52.7]} 22. e3 {[%clk 0:01:34.5]} 22... Rfd8 {[%clk
0:01:43.7]} 23. Qc7 {[%clk 0:01:22.1]} 23... Rd7 {[%clk 0:01:39.2]} 24. Qe5
{[%clk 0:01:12.9]} 24... Ne8 {[%clk 0:01:34.5]} 0-1

[Event "*** Titled Tuesday Blitz"]
[Site "Chess.com"]
[Date "2020.10.20"]
[Round "5"]
[White "RasSanti"]
[Black "NeverW84M8"]
[Result "0-1"]
[WhiteElo "2282"]
[BlackElo "2464"]
[TimeControl "180+1"]
[EndTime "10:54:41 PDT"]
[Termination "NeverW84M8 won by resignation"]

1. d4 {[%clk 0:02:52.5]} 1... Nf6 {[%clk 0:02:59.6]} 2. Bg5 {[%clk 0:02:50.1]}
2... d5 {[%clk 0:02:59.5]} 3. Nf3 {[%clk 0:02:48.5]} 3... c5 {[%clk 0:02:57.8]}
4. Bxf6 {[%clk 0:02:46.8]} 4... gxf6 {[%clk 0:02:58.4]} 5. e3 {[%clk 0:02:45.8]}
5... Nc6 {[%clk 0:02:54.9]} 6. c4 {[%clk 0:02:39.8]} 6... dxc4 {[%clk
0:02:49.8]} 7. d5 {[%clk 0:02:39.4]} 7... Na5 {[%clk 0:02:40.6]} 8. Bxc4 {[%clk
0:02:37.6]} 8... Nxc4 {[%clk 0:02:41.5]} 9. Qa4+ {[%clk 0:02:37.5]} 9... Bd7
{[%clk 0:02:34.4]} 10. Qxc4 {[%clk 0:02:37.7]} 10... b5 {[%clk 0:02:34.1]} 11.
Qxc5 {[%clk 0:02:36.9]} 11... Rc8 {[%clk 0:02:33.7]} 12. Qxa7 {[%clk 0:02:26.7]}
12... Rc1+ {[%clk 0:02:32.4]} 13. Ke2 {[%clk 0:02:17.8]} 13... Rxh1 {[%clk
0:02:33.3]} 14. Ne1 {[%clk 0:02:16.9]} 14... Qc8 {[%clk 0:02:30.9]} 15. Nd2
{[%clk 0:02:13.9]} 15... f5 {[%clk 0:02:28]} 16. h3 {[%clk 0:02:08.7]} 16... Bg7
{[%clk 0:02:27.8]} 17. Qa3 {[%clk 0:01:58.8]} 17... O-O {[%clk 0:02:21]} 18.
Qxe7 {[%clk 0:01:46.4]} 18... Re8 {[%clk 0:02:19.2]} 19. Qb4 {[%clk 0:01:42.8]}
19... f4 {[%clk 0:01:59.8]} 20. Qxf4 {[%clk 0:01:31.2]} 20... Bxb2 {[%clk
0:01:59.7]} 21. Rb1 {[%clk 0:01:30.2]} 21... Bg7 {[%clk 0:01:59.5]} 22. g4
{[%clk 0:01:16.8]} 22... Rxh3 {[%clk 0:01:50.9]} 23. f3 {[%clk 0:01:14.1]} 23...
Rh1 {[%clk 0:01:47.6]} 24. Ne4 {[%clk 0:01:04.9]} 24... Qc4+ {[%clk 0:01:43.3]}
25. Kf2 {[%clk 0:01:00.5]} 25... Qxa2+ {[%clk 0:01:35]} 26. Kg3 {[%clk
0:00:54.8]} 26... Qxb1 {[%clk 0:01:34.3]} 0-1

[Event "*** Titled Tuesday Blitz"]
[Site "Chess.com"]
[Date "2020.10.20"]
[Round "5"]
[White "kasparicy"]
[Black "Sn00pPawn"]
[Result "1-0"]
[WhiteElo "2374"]
[BlackElo "2005"]
[TimeControl "180+1"]
[EndTime "10:54:52 PDT"]
[Termination "kasparicy won on time"]

1. e4 {[%clk 0:03:00.9]} 1... c5 {[%clk 0:02:58.2]} 2. Nf3 {[%clk 0:02:52.3]}
2... d6 {[%clk 0:02:48.8]} 3. d4 {[%clk 0:02:53.2]} 3... cxd4 {[%clk 0:02:49.7]}
4. Nxd4 {[%clk 0:02:54.1]} 4... Nf6 {[%clk 0:02:49.7]} 5. Nc3 {[%clk 0:02:47.4]}
5... a6 {[%clk 0:02:45.1]} 6. Qf3 {[%clk 0:02:47.9]} 6... e6 {[%clk 0:02:39.7]}
7. g4 {[%clk 0:02:36.1]} 7... Qc7 {[%clk 0:02:31.2]} 8. g5 {[%clk 0:02:31.4]}
8... Nfd7 {[%clk 0:02:28.2]} 9. h4 {[%clk 0:02:32.3]} 9... b5 {[%clk 0:02:18.2]}
10. Be3 {[%clk 0:02:19.2]} 10... Bb7 {[%clk 0:02:16.5]} 11. O-O-O {[%clk
0:02:19.6]} 11... Nc6 {[%clk 0:02:09]} 12. h5 {[%clk 0:02:16.5]} 12... Nce5
{[%clk 0:01:47.3]} 13. Qg2 {[%clk 0:02:04]} 13... b4 {[%clk 0:01:40.1]} 14. Nce2
{[%clk 0:01:53.2]} 14... Nc4 {[%clk 0:01:38]} 15. g6 {[%clk 0:01:46]} 1-0

[Event "*** Titled Tuesday Blitz"]
[Site "Chess.com"]
[Date "2020.10.20"]
[Round "5"]
[White "TrickyFortem"]
[Black "NotFischer"]
[Result "1-0"]
[WhiteElo "2458"]
[BlackElo "2246"]
[TimeControl "180+1"]
[EndTime "10:54:54 PDT"]
[Termination "TrickyFortem won by resignation"]

1. e4 {[%clk 0:03:00.9]} 1... d5 {[%clk 0:02:59.7]} 2. exd5 {[%clk 0:02:59.2]}
2... Nf6 {[%clk 0:02:59.2]} 3. Bb5+ {[%clk 0:02:57.2]} 3... Nbd7 {[%clk
0:02:59]} 4. Nc3 {[%clk 0:02:56.1]} 4... a6 {[%clk 0:02:58.2]} 5. Ba4 {[%clk
0:02:55.6]} 5... b5 {[%clk 0:02:58]} 6. Bb3 {[%clk 0:02:56.1]} 6... Bb7 {[%clk
0:02:57.4]} 7. Nf3 {[%clk 0:02:53.8]} 7... Nb6 {[%clk 0:02:57.7]} 8. O-O {[%clk
0:02:48]} 8... Nfxd5 {[%clk 0:02:57.9]} 9. Ne4 {[%clk 0:02:46.6]} 9... e6 {[%clk
0:02:56.4]} 10. d4 {[%clk 0:02:45.9]} 10... Be7 {[%clk 0:02:53.3]} 11. c3 {[%clk
0:02:44.9]} 11... O-O {[%clk 0:02:49.9]} 12. Bc2 {[%clk 0:02:44.5]} 12... Nf6
{[%clk 0:02:38.5]} 13. Neg5 {[%clk 0:02:38.5]} 13... h6 {[%clk 0:02:38.4]} 14.
Nh3 {[%clk 0:02:38.6]} 14... Qd5 {[%clk 0:02:33.9]} 15. Nf4 {[%clk 0:02:37.1]}
15... Qc6 {[%clk 0:02:16.4]} 16. Ne5 {[%clk 0:02:37.3]} 16... Qd6 {[%clk
0:02:08.1]} 17. Qd3 {[%clk 0:02:32.1]} 17... Rad8 {[%clk 0:02:06.3]} 18. Re1
{[%clk 0:02:30.6]} 18... c5 {[%clk 0:02:06.2]} 19. Nh5 {[%clk 0:02:29.7]} 19...
Ne4 {[%clk 0:01:04.5]} 20. Rxe4 {[%clk 0:02:29.2]} 20... Bxe4 {[%clk 0:01:05.4]}
21. Qxe4 {[%clk 0:02:30.1]} 21... f5 {[%clk 0:01:05.9]} 22. Qf3 {[%clk
0:02:22.9]} 22... cxd4 {[%clk 0:01:02.2]} 23. Bf4 {[%clk 0:02:22.4]} 23... Qd5
{[%clk 0:00:59.8]} 24. Qg3 {[%clk 0:02:22.3]} 24... Bf6 {[%clk 0:00:57.1]} 25.
Bb3 {[%clk 0:02:18.4]} 25... Nc4 {[%clk 0:00:52.7]} 26. cxd4 {[%clk 0:02:06.6]}
26... Rc8 {[%clk 0:00:40.6]} 27. Rd1 {[%clk 0:02:03.8]} 27... a5 {[%clk
0:00:39.8]} 28. Ng6 {[%clk 0:02:01.1]} 28... Rf7 {[%clk 0:00:34.2]} 29. Nxf6+
{[%clk 0:02:00.2]} 1-0

[Event "*** Titled Tuesday Blitz"]
[Site "Chess.com"]
[Date "2020.10.20"]
[Round "5"]
[White "NikolaGry"]
[Black "ChristopherYoo"]
[Result "0-1"]
[WhiteElo "2708"]
[BlackElo "2844"]
[TimeControl "180+1"]
[EndTime "10:54:57 PDT"]
[Termination "ChristopherYoo won by resignation"]

1. b3 {[%clk 0:03:00.9]} 1... g6 {[%clk 0:02:15.1]} 2. Bb2 {[%clk 0:03:00.6]}
2... Nf6 {[%clk 0:02:15.5]} 3. Bxf6 {[%clk 0:03:00.6]} 3... exf6 {[%clk
0:02:16.4]} 4. c4 {[%clk 0:03:00.5]} 4... d5 {[%clk 0:02:14.7]} 5. cxd5 {[%clk
0:03:00.3]} 5... Qxd5 {[%clk 0:02:15.6]} 6. Nc3 {[%clk 0:03:00.5]} 6... Qa5
{[%clk 0:02:15.8]} 7. a3 {[%clk 0:03:00.4]} 7... c6 {[%clk 0:02:14.5]} 8. e3
{[%clk 0:02:58.5]} 8... Bg7 {[%clk 0:02:13.8]} 9. Nf3 {[%clk 0:02:58.4]} 9...
O-O {[%clk 0:02:13.4]} 10. b4 {[%clk 0:02:55.9]} 10... Qd8 {[%clk 0:02:13.2]}
11. Bc4 {[%clk 0:02:53]} 11... Bg4 {[%clk 0:01:47.8]} 12. d4 {[%clk 0:02:36.3]}
12... Nd7 {[%clk 0:01:41.4]} 13. O-O {[%clk 0:02:27.9]} 13... Nb6 {[%clk
0:01:39.9]} 14. Ba2 {[%clk 0:02:14.4]} 14... f5 {[%clk 0:01:38.8]} 15. h3 {[%clk
0:02:03.2]} 15... Bh5 {[%clk 0:01:38.2]} 16. g3 {[%clk 0:01:47]} 16... a5 {[%clk
0:01:23.7]} 17. bxa5 {[%clk 0:01:18.8]} 17... Rxa5 {[%clk 0:01:21.7]} 18. Kg2
{[%clk 0:01:14.1]} 18... c5 {[%clk 0:01:14]} 19. Ne2 {[%clk 0:01:07.2]} 19...
Bxf3+ {[%clk 0:01:07.3]} 20. Kxf3 {[%clk 0:01:07.1]} 20... cxd4 {[%clk
0:01:07.3]} 21. Nxd4 {[%clk 0:01:03.6]} 21... Bxd4 {[%clk 0:01:06.6]} 22. exd4
{[%clk 0:00:57.7]} 22... Rxa3+ {[%clk 0:01:05.7]} 23. Kg2 {[%clk 0:00:57.9]}
23... Rxa2 {[%clk 0:01:05.6]} 0-1

[Event "*** Titled Tuesday Blitz"]
[Site "Chess.com"]
[Date "2020.10.20"]
[Round "5"]
[White "As0nchess"]
[Black "SGchess01"]
[Result "1-0"]
[WhiteElo "2615"]
[BlackElo "2801"]
[TimeControl "180+1"]
[EndTime "10:54:57 PDT"]
[Termination "As0nchess won by resignation"]

1. e4 {[%clk 0:03:00.1]} 1... c6 {[%clk 0:02:58.1]} 2. d4 {[%clk 0:03:00]} 2...
d5 {[%clk 0:02:59]} 3. Nd2 {[%clk 0:03:00.3]} 3... dxe4 {[%clk 0:02:58.9]} 4.
Nxe4 {[%clk 0:03:01.2]} 4... Nf6 {[%clk 0:02:59.8]} 5. Nxf6+ {[%clk 0:03:01.4]}
5... exf6 {[%clk 0:03:00.7]} 6. c3 {[%clk 0:03:01.8]} 6... Bd6 {[%clk 0:03:01]}
7. Bd3 {[%clk 0:03:01.9]} 7... O-O {[%clk 0:03:01.9]} 8. Qc2 {[%clk 0:03:02.1]}
8... Re8+ {[%clk 0:03:02.3]} 9. Ne2 {[%clk 0:03:02.4]} 9... h5 {[%clk
0:03:02.9]} 10. O-O {[%clk 0:03:01.8]} 10... h4 {[%clk 0:03:02.7]} 11. h3 {[%clk
0:03:01.6]} 11... Nd7 {[%clk 0:03:02.7]} 12. Bd2 {[%clk 0:03:01.7]} 12... Nf8
{[%clk 0:03:02.7]} 13. Rae1 {[%clk 0:03:00.7]} 13... Ne6 {[%clk 0:02:54.7]} 14.
Qd1 {[%clk 0:02:40.6]} 14... Bc7 {[%clk 0:02:53.3]} 15. f4 {[%clk 0:02:34.8]}
15... Qd6 {[%clk 0:02:52.3]} 16. Nc1 {[%clk 0:02:25.2]} 16... c5 {[%clk
0:02:49.6]} 17. Qh5 {[%clk 0:02:09.8]} 17... Bd7 {[%clk 0:02:21.6]} 18. Qh7+
{[%clk 0:01:50.9]} 18... Kf8 {[%clk 0:02:19.7]} 19. dxc5 {[%clk 0:01:38.4]}
19... Qxc5+ {[%clk 0:02:01]} 20. Be3 {[%clk 0:01:37.5]} 20... Qd6 {[%clk
0:01:47.4]} 21. Qh8+ {[%clk 0:01:37.2]} 21... Ke7 {[%clk 0:01:46]} 22. Qxh4
{[%clk 0:01:38.1]} 22... Bb6 {[%clk 0:01:38.1]} 23. f5 {[%clk 0:01:31.1]} 23...
Rh8 {[%clk 0:01:34.1]} 24. Qf2 {[%clk 0:01:20.6]} 24... Bc7 {[%clk 0:01:33.7]}
25. Bf4 {[%clk 0:01:03.2]} 1-0

[Event "*** Titled Tuesday Blitz"]
[Site "Chess.com"]
[Date "2020.10.20"]
[Round "5"]
[White "kai_nov"]
[Black "Skatchkov_V"]
[Result "1-0"]
[WhiteElo "2265"]
[BlackElo "2511"]
[TimeControl "180+1"]
[EndTime "10:54:59 PDT"]
[Termination "kai_nov won by checkmate"]

1. d4 {[%clk 0:03:00.9]} 1... Nf6 {[%clk 0:02:59.6]} 2. c4 {[%clk 0:02:59.1]}
2... e6 {[%clk 0:03:00]} 3. Nc3 {[%clk 0:02:57.8]} 3... Bb4 {[%clk 0:03:00.5]}
4. f3 {[%clk 0:02:57.5]} 4... O-O {[%clk 0:03:00.1]} 5. e4 {[%clk 0:02:56.8]}
5... c5 {[%clk 0:03:00.9]} 6. d5 {[%clk 0:02:55.3]} 6... b5 {[%clk 0:03:01.4]}
7. e5 {[%clk 0:02:45.8]} 7... Ne8 {[%clk 0:03:01.5]} 8. f4 {[%clk 0:02:43.7]}
8... exd5 {[%clk 0:03:01.3]} 9. cxd5 {[%clk 0:02:41.6]} 9... Bb7 {[%clk
0:03:00.9]} 10. Nf3 {[%clk 0:02:30.5]} 10... d6 {[%clk 0:03:00]} 11. Bd3 {[%clk
0:02:26.4]} 11... dxe5 {[%clk 0:02:41.6]} 12. fxe5 {[%clk 0:02:26.1]} 12... Qxd5
{[%clk 0:02:24.2]} 13. O-O {[%clk 0:02:23]} 13... Bxc3 {[%clk 0:02:18.8]} 14.
bxc3 {[%clk 0:02:22.5]} 14... Nc7 {[%clk 0:02:18.3]} 15. Qc2 {[%clk 0:02:06]}
15... h6 {[%clk 0:02:17.6]} 16. c4 {[%clk 0:01:56.8]} 16... bxc4 {[%clk
0:02:16.1]} 17. Bxc4 {[%clk 0:01:56.8]} 17... Qc6 {[%clk 0:02:15.6]} 18. Rd1
{[%clk 0:01:42.1]} 18... Nba6 {[%clk 0:01:50.8]} 19. Rd6 {[%clk 0:01:30.2]}
19... Qe8 {[%clk 0:01:51]} 20. Rxh6 {[%clk 0:01:22.8]} 20... gxh6 {[%clk
0:01:36.1]} 21. Qg6+ {[%clk 0:01:22]} 21... Kh8 {[%clk 0:01:37]} 22. Qxh6+
{[%clk 0:01:22.2]} 22... Kg8 {[%clk 0:01:37.9]} 23. Qg6+ {[%clk 0:01:07.9]}
23... Kh8 {[%clk 0:01:37.8]} 24. Qf6+ {[%clk 0:01:04.2]} 24... Kg8 {[%clk
0:01:37.1]} 25. Bh6 {[%clk 0:00:59.4]} 25... Qxe5 {[%clk 0:01:30.1]} 26. Nxe5
{[%clk 0:00:57.7]} 26... Ne8 {[%clk 0:01:29.9]} 27. Bxf7+ {[%clk 0:00:52.8]}
27... Rxf7 {[%clk 0:01:28.8]} 28. Qxf7+ {[%clk 0:00:52.9]} 28... Kh8 {[%clk
0:01:29.6]} 29. Ng6# {[%clk 0:00:52.4]} 1-0